fUSD/lending_fUSD_20240105
["ID","MTS","AMOUNT","RATE_DAILY","PERIOD"]
[310257691,1704424300770,-500.0,0.0003726,3]
[310257692,1704424300780,-786.79,0.0003726,3]
[310257693,1704424300789,-5862.64,0.0003726,3]
[310257694,1704424300798,-500.0,0.0003726,3]
[310257695,1704424300807,-934.12,0.0003726,3]
[310257696,1704424300816,-1785.52,0.0003726,3]
[310257697,1704424300825,-500.0,0.0003726,3]
[310257698,1704424300834,-912.64,0.0003726,3]
[310257699,1704424300843,-808.85,0.0003726,3]
[310257700,1704424300852,-882.36,0.0003726,3]
[310257701,1704424300861,-1259.24,0.0003726,3]
[310257702,1704424300871,-13869.62,0.0003726,3]
[310257703,1704424300880,-500.0,0.0003726,3]
[310257704,1704424300888,-513.59387773,0.0003726,3]
[310257705,1704424300898,-500.0,0.0003726,3]
[310257706,1704424300909,-3101.88,0.0003726,3]
[310257707,1704424300918,-510.00090927,0.0003726,3]
[310257708,1704424300929,-1091.42,0.0003726,3]
[310257709,1704424300940,-785.92,0.0003726,3]
[310257710,1704424300953,-586.04,0.0003726,3]
[310257711,1704424300963,-500.0,0.0003726,3]
[310257712,1704424300971,-500.0,0.0003726,3]
[310257713,1704424300981,-1268.16,0.0003726,3]
[310257714,1704424300993,-1189.46,0.0003726,3]
[310257715,1704424301002,-606.27,0.0003726,3]
[310257716,1704424301011,-593.38,0.0003726,3]
[310257717,1704424301021,-1481.99,0.0003726,3]
[310257718,1704424301030,-500.0,0.0003726,3]
[310257719,1704424301041,-500.0,0.0003726,3]
[310257720,1704424301052,-1085.76,0.0003726,3]
[310257721,1704424301063,-1106.51,0.0003726,3]
[310257722,1704424301072,-172.78815389,0.0003726,3]
[310257723,1704424301082,-500.0,0.0003726,3]
[310257724,1704424301092,-352.0552937,0.0003726,3]
[310257725,1704424301101,-1351.81,0.0003726,3]
[310257726,1704424301113,-500.0,0.0003726,3]
[310257727,1704424301123,-500.0,0.0003726,3]
[310257728,1704424301133,-500.0,0.0003726,3]
[310257729,1704424301142,-545.65,0.0003726,3]
[310257730,1704424301151,-269.01226707,0.0003726,3]
[310257731,1704424301161,-765.09,0.0003726,3]
[310257732,1704424301170,-537.24,0.0003726,3]
[310257733,1704424301179,-173.53408289,0.0003726,3]
[310257734,1704424301189,-1151.66,0.0003726,3]
[310257735,1704424301198,-500.0,0.0003726,3]
[310257736,1704424301207,-779.5,0.0003726,3]
[310257737,1704424301216,-1306.66,0.0003726,3]
[310257738,1704424301225,-572.88,0.0003726,3]
[310257739,1704424301236,-500.0,0.0003726,3]
[310257740,1704424301246,-500.0,0.0003726,3]
[310257741,1704424301255,-500.0,0.0003726,3]
[310257742,1704424301264,-8188.31,0.0003726,3]
[310257743,1704424301274,-500.0,0.0003726,3]
[310257744,1704424301284,-500.0,0.0003726,3]
[310257745,1704424301293,-1063.95,0.0003726,3]
[310257746,1704424301302,-500.0,0.0003726,3]
[310257747,1704424301311,-798.53,0.0003726,3]
[310257748,1704424301320,-500.0,0.0003726,3]
[310257749,1704424301330,-528.36,0.0003726,3]
[310257750,1704424301349,-500.0,0.0003726,3]
[310257751,1704424301360,-920.16,0.0003726,3]
[310257752,1704424301370,-500.0,0.0003726,3]
[310257753,1704424301380,-192.44656253,0.0003726,3]
[310257754,1704424301389,-500.0,0.0003726,3]
[310257755,1704424301399,-663.44,0.0003726,3]
[310257756,1704424301408,-1622.28,0.0003726,3]
[310257757,1704424301418,-500.0,0.0003726,3]
[310257758,1704424301427,-711.28,0.0003726,3]
[310257759,1704424301436,-500.0,0.0003726,3]
[310257760,1704424301445,-502.3,0.0003726,3]
[310257761,1704424301455,-2080.27,0.0003726,3]
[310257762,1704424301466,-835.35,0.0003726,3]
[310257763,1704424301476,-500.0,0.0003726,3]
[310257764,1704424301486,-500.0,0.0003726,3]
[310257765,1704424301496,-500.0,0.0003726,3]
[310257766,1704424301505,-2415.78,0.0003726,3]
[310257767,1704424301514,-162.86,0.0003726,3]
[310257768,1704424301523,-558.41,0.0003726,3]
[310257769,1704424301533,-500.0,0.0003726,3]
[310257770,1704424301543,-500.0,0.0003726,3]
[310257771,1704424301552,-500.0,0.0003726,3]
[310257772,1704424301561,-500.0,0.0003726,3]
[310257773,1704424301571,-171.51623277,0.0003726,3]
[310257774,1704424301580,-500.0,0.0003726,3]
[310257775,1704424301589,-208.58717119,0.0003726,3]
[310257776,1704424301598,-250.66125458,0.0003726,3]
[310257777,1704424301607,-542.19,0.0003726,3]
[310257778,1704424301617,-500.0,0.0003726,3]
[310257779,1704424301626,-500.0,0.0003726,3]
[310257780,1704424301636,-500.0,0.0003726,3]
[310257781,1704424301645,-500.0,0.0003726,3]
[310257782,1704424301655,-500.0,0.0003726,3]
[310257783,1704424301664,-1511.27,0.0003726,3]
[310257784,1704424301673,-500.0,0.0003726,3]
[310257785,1704424301682,-4392.23,0.0003726,3]
[310257786,1704424301692,-1318.19,0.0003726,3]
[310257787,1704424301701,-398.43481052,0.0003726,3]
[310257788,1704424301710,-500.0,0.0003726,3]
[310257789,1704424301719,-345.48501174,0.0003726,3]
[310257790,1704424301728,-868.93,0.0003726,3]
[310257791,1704424301737,-500.0,0.00037293,7]
[310257792,1704424301747,-157.40105,0.00037298,2]
[310257793,1704424301755,-8248.29,0.000373,7]
[310257794,1704424301764,-13965.33,0.000373,7]
[310257795,1704424301773,-3353.0,0.00037369,20]
[310257796,1704424301783,-842.0,0.00037369,20]
[310257797,1704424301791,-370.0,0.00037369,20]
[310257798,1704424301801,-3000.0,0.0003739,2]
[310257799,1704424301810,-212.386285,0.00037395,2]
[310257800,1704424301820,-246.504975,0.00037395,2]
[310257801,1704424301830,-489.994873,0.00037395,2]
[310257802,1704424301839,-503.30004599,0.00037396,2]
[310257803,1704424301848,-153.84,0.00037443,2]
[310257804,1704424301857,-154.87,0.00037477,2]
[310257805,1704424301867,-150.0,0.00037491,2]
[310257806,1704424301876,-157.40105,0.00037498,2]
[310257807,1704424301885,-300.0,0.000375,12]
[310257808,1704424301894,-1015.2250948,0.000375,2]
[310257809,1704424301903,-1000.0,0.00037505,2]
[310257810,1704424301914,-180.69,0.00037534,2]
[310257811,1704424301924,-500.0,0.00037534,3]
[310257812,1704424301933,-500.0,0.00037534,3]
[310257813,1704424301943,-269.37213225,0.00037534,2]
[310257814,1704424301954,-317.94659913,0.00037534,3]
[310257815,1704424301962,-500.0,0.00037534,3]
[310257816,1704424301972,-760.75,0.00037534,3]
[310257817,1704424301981,-375.16661501,0.00037534,3]
[310257818,1704424301990,-500.0,0.00037534,3]
[310257819,1704424302000,-500.0,0.00037534,3]
[310257820,1704424302009,-500.0,0.00037534,3]
[310257821,1704424302019,-583.53,0.00037534,3]
[310257822,1704424302028,-500.0,0.00037534,3]
[310257823,1704424302039,-500.0,0.00037534,3]
[310257824,1704424302050,-500.0,0.00037534,3]
[310257825,1704424302059,-578.86452425,0.00037534,3]
[310257826,1704424302068,-500.0,0.00037534,3]
[310257827,1704424302078,-500.0,0.00037534,3]
[310257828,1704424302087,-500.0,0.00037534,3]
[310257829,1704424302097,-669.12,0.00037534,3]
[310257830,1704424302106,-500.0,0.00037534,3]
[310257831,1704424302115,-500.0,0.00037534,3]
[310257832,1704424302124,-500.0,0.00037534,3]
[310257833,1704424302133,-500.0,0.00037534,3]
[310257834,1704424302142,-530.89,0.00037534,3]
[310257835,1704424302151,-500.0,0.00037534,3]
[310257836,1704424302160,-500.0,0.00037534,3]
[310257837,1704424302169,-500.0,0.00037534,3]
[310257838,1704424302179,-500.0,0.00037534,3]
[310257839,1704424302188,-500.0,0.00037534,3]
[310257840,1704424302197,-500.0,0.00037534,3]
[310257841,1704424302207,-500.0,0.00037534,3]
[310257842,1704424302216,-500.0,0.00037534,3]
[310257843,1704424302225,-500.0,0.00037534,3]
[310257844,1704424302234,-500.0,0.00037534,3]
[310257845,1704424302243,-500.0,0.00037534,3]
[310257846,1704424302253,-500.0,0.00037534,3]
[310257847,1704424302263,-500.0,0.00037534,3]
[310257848,1704424302272,-500.0,0.00037534,3]
[310257849,1704424302282,-203.1967095,0.00037534,3]
[310257850,1704424302291,-500.0,0.00037534,3]
[310257851,1704424302300,-500.0,0.00037534,3]
[310257852,1704424302309,-500.0,0.00037534,3]
[310257853,1704424302319,-500.0,0.00037534,3]
[310257854,1704424302328,-277.02950873,0.00037534,3]
[310257855,1704424302337,-500.0,0.00037534,3]
[310257856,1704424302347,-500.0,0.00037534,3]
[310257857,1704424302357,-500.0,0.00037534,3]
[310257858,1704424302367,-500.0,0.00037534,3]
[310257859,1704424302376,-500.0,0.00037534,3]
[310257860,1704424302385,-500.0,0.00037534,3]
[310257861,1704424302395,-500.0,0.00037534,3]
[310257862,1704424302405,-395.04905409,0.00037534,3]
[310257863,1704424302414,-500.0,0.00037534,3]
[310257864,1704424302424,-500.0,0.00037534,3]
[310257865,1704424302433,-582.72087775,0.00037534,3]
[310257866,1704424302444,-500.0,0.00037534,3]
[310257867,1704424302454,-226.74529396,0.00037534,3]
[310257868,1704424302464,-500.0,0.00037534,3]
[310257869,1704424302474,-500.0,0.00037534,3]
[310257870,1704424302483,-424.62308128,0.00037534,3]
[310257871,1704424302493,-500.0,0.00037534,3]
[310257872,1704424302502,-419.07649849,0.00037534,3]
[310257873,1704424302511,-500.0,0.00037534,3]
[310257874,1704424302521,-543.32162711,0.00037534,3]
[310257875,1704424302530,-500.0,0.00037534,3]
[310257876,1704424302540,-500.0,0.00037534,3]
[310257877,1704424302552,-500.0,0.00037534,3]
[310257878,1704424302562,-335.1170587,0.00037534,3]
[310257879,1704424302571,-500.0,0.00037534,3]
[310257880,1704424302580,-500.0,0.00037534,3]
[310257881,1704424302590,-500.0,0.00037534,3]
[310257882,1704424302599,-500.0,0.00037534,3]
[310257883,1704424302608,-500.0,0.00037534,3]
[310257884,1704424302620,-954.7,0.00037534,3]
[310257885,1704424302629,-500.0,0.00037534,3]
[310257886,1704424302639,-623.65306322,0.00037534,3]
[310257887,1704424302649,-500.0,0.00037534,3]
[310257888,1704424302658,-448.07347972,0.00037534,3]
[310257889,1704424302667,-421.49172722,0.00037534,3]
[310257890,1704424302677,-500.0,0.00037534,3]
[310257891,1704424302686,-522.70569018,0.00037534,3]
[310257892,1704424302696,-500.0,0.00037534,3]
[310257893,1704424302705,-432.56200255,0.00037534,3]
[310257894,1704424302715,-159.9463016,0.00037534,3]
[310257895,1704424302724,-318.76535384,0.00037534,3]
[310257896,1704424302733,-500.0,0.00037534,3]
[310257897,1704424302742,-500.0,0.00037534,3]
[310257898,1704424302751,-500.0,0.00037534,3]
[310257899,1704424302760,-500.0,0.00037534,3]
[310257900,1704424302769,-332.1611407,0.00037534,3]
[310257901,1704424302778,-500.0,0.00037534,3]
[310257902,1704424302787,-500.0,0.00037534,3]
[310257903,1704424302796,-619.1550577,0.00037534,3]
[310257904,1704424302806,-500.0,0.00037534,3]
[310257905,1704424302815,-500.0,0.00037534,3]
[310257906,1704424302823,-500.0,0.00037534,3]
[310257907,1704424302833,-500.0,0.00037534,3]
[310257908,1704424302842,-516.34938278,0.00037534,3]
[310257909,1704424302851,-170.70049003,0.00037534,3]
[310257910,1704424302860,-500.0,0.00037534,3]
[310257911,1704424302869,-500.0,0.00037534,3]
[310257912,1704424302878,-299.39552052,0.00037534,3]
[310257913,1704424302888,-500.0,0.00037534,3]
[310257914,1704424302898,-500.0,0.00037534,3]
[310257915,1704424302907,-500.0,0.00037534,3]
[310257916,1704424302916,-500.0,0.00037534,3]
[310257917,1704424302925,-467.80519452,0.00037534,3]
[310257918,1704424302934,-500.0,0.00037534,3]
[310257919,1704424302946,-874.14,0.00037534,3]
[310257920,1704424302956,-500.0,0.00037534,3]
[310257921,1704424302965,-500.0,0.00037534,3]
[310257922,1704424303165,-189.64911196,0.00037534,3]
[310257923,1704424303191,-500.0,0.00037534,3]
[310257924,1704424303201,-500.0,0.00037534,3]
[310257925,1704424303210,-235.66570768,0.00037534,3]
[310257926,1704424303219,-500.0,0.00037534,3]
[310257927,1704424303228,-500.0,0.00037534,3]
[310257928,1704424303237,-500.0,0.00037534,3]
[310257929,1704424303246,-500.0,0.00037534,3]
[310257930,1704424303259,-317.3157347,0.00037534,3]
[310257931,1704424303268,-500.0,0.00037534,3]
[310257932,1704424303277,-500.0,0.00037534,3]
[310257933,1704424303286,-500.0,0.00037534,3]
[310257934,1704424303295,-500.0,0.00037534,3]
[310257935,1704424303305,-500.0,0.00037534,3]
[310257936,1704424303315,-500.0,0.00037534,3]
[310257937,1704424303324,-500.0,0.00037534,3]
[310257938,1704424303334,-500.0,0.00037534,3]
[310257939,1704424303343,-500.0,0.00037534,3]
[310257940,1704424303352,-500.0,0.00037534,3]
[310257941,1704424303361,-500.0,0.00037534,3]
[310257942,1704424303372,-412.36498412,0.00037534,3]
[310257943,1704424303381,-500.0,0.00037534,3]
[310257944,1704424303390,-500.0,0.00037534,3]
[310257945,1704424303401,-163.97491872,0.00037534,3]
[310257946,1704424303410,-153.68056273,0.00037534,3]
[310257947,1704424303420,-500.0,0.00037534,3]
[310257948,1704424303429,-500.0,0.00037534,3]
[310257949,1704424303438,-500.0,0.00037534,3]
[310257950,1704424303447,-174.64261633,0.00037534,3]
[310257951,1704424303457,-500.0,0.00037534,3]
[310257952,1704424303467,-500.0,0.00037534,3]
[310257953,1704424303476,-500.0,0.00037534,3]
[310257954,1704424303486,-500.0,0.00037534,3]
[310257955,1704424303496,-593.83,0.00037534,3]
[310257956,1704424303505,-566.04959342,0.00037534,3]
[310257957,1704424303515,-3647.06,0.00037534,3]
[310257958,1704424303525,-500.0,0.00037534,3]
[310257959,1704424303536,-523.05,0.00037534,3]
[310257960,1704424303545,-569.6,0.00037534,3]
[310257961,1704424303555,-500.0,0.00037534,3]
[310257962,1704424303564,-500.0,0.00037534,3]
[310257963,1704424303573,-1578.13,0.00037534,3]
[310257964,1704424303583,-869.26,0.00037534,3]
[310257965,1704424303593,-601.34,0.00037534,3]
[310257966,1704424303602,-602.04,0.00037534,3]
[310257967,1704424303611,-500.0,0.00037534,3]
[310257968,1704424303622,-500.0,0.00037534,3]
[310257969,1704424303631,-500.0,0.00037534,3]
[310257970,1704424303641,-559.1,0.00037534,3]
[310257971,1704424303651,-500.0,0.00037534,3]
[310257972,1704424303660,-500.0,0.00037534,3]
[310257973,1704424303670,-500.0,0.00037534,3]
[310257974,1704424303680,-500.0,0.00037534,3]
[310257975,1704424303689,-500.0,0.00037534,3]
[310257976,1704424303699,-500.0,0.00037534,3]
[310257977,1704424303709,-4769.97,0.00037534,3]
[310257978,1704424303718,-500.0,0.00037534,3]
[310257979,1704424303727,-565.17,0.00037534,3]
[310257980,1704424303736,-500.0,0.00037534,3]
[310257981,1704424303745,-2681.68,0.00037534,3]
[310257982,1704424303754,-3006.36,0.00037534,3]
[310257983,1704424303763,-774.17,0.00037534,3]
[310257984,1704424303771,-500.0,0.00037534,3]
[310257985,1704424303782,-500.0,0.00037534,3]
[310257986,1704424303792,-776.16,0.00037534,3]
[310257987,1704424303801,-1909.11,0.00037534,3]
[310257988,1704424303811,-1238.67,0.00037534,3]
[310257989,1704424303821,-529.17,0.00037534,3]
[310257990,1704424303830,-3090.15,0.00037534,3]
[310257991,1704424303839,-500.0,0.00037534,3]
[310257992,1704424303848,-5012.71,0.00037534,3]
[310257993,1704424303857,-500.0,0.00037534,3]
[310257994,1704424303866,-1857.63,0.00037534,3]
[310257995,1704424303876,-4528.66,0.00037534,3]
[310257996,1704424303885,-704.83,0.00037534,3]
[310257997,1704424303896,-1953.12,0.00037534,3]
[310257998,1704424303906,-2812.81,0.00037534,3]
[310257999,1704424303916,-500.0,0.00037534,3]
[310258000,1704424303926,-778.9,0.00037534,3]
[310258001,1704424303936,-1569.53,0.00037534,3]
[310258002,1704424303946,-500.0,0.00037534,3]
[310258003,1704424303955,-1388.55,0.00037534,3]
[310258004,1704424303965,-500.0,0.00037534,3]
[310258005,1704424303974,-500.0,0.00037534,3]
[310258006,1704424303984,-500.0,0.00037534,3]
[310258007,1704424303993,-971.61,0.00037534,3]
[310258008,1704424304002,-2118.07,0.00037534,3]
[310258009,1704424304011,-501.45102624,0.00037534,3]
[310258010,1704424304022,-1026.23,0.00037534,3]
[310258011,1704424304033,-500.0,0.00037534,3]
[310258012,1704424304042,-528.77,0.00037534,3]
[310258013,1704424304053,-747.51,0.00037534,3]
[310258014,1704424304064,-500.0,0.00037534,3]
[310258015,1704424304073,-500.0,0.00037534,3]
[310258016,1704424304084,-1231.35,0.00037534,3]
[310258017,1704424304093,-500.0,0.00037534,3]
[310258018,1704424304103,-1256.48,0.00037534,3]
[310258019,1704424304112,-500.0,0.00037534,3]
[310258020,1704424304123,-2582.67,0.00037534,3]
[310258021,1704424304134,-1321.69,0.00037534,3]
[310258022,1704424304145,-985.31,0.00037534,3]
[310258023,1704424304157,-500.0,0.00037534,3]
[310258024,1704424304166,-804.83,0.00037534,3]
[310258025,1704424304176,-672.09,0.00037534,3]
[310258026,1704424304185,-500.0,0.00037534,3]
[310258027,1704424304195,-500.0,0.00037534,3]
[310258028,1704424304204,-1836.89,0.00037534,3]
[310258029,1704424304213,-500.0,0.00037534,3]
[310258030,1704424304223,-1010.49,0.00037534,3]
[310258031,1704424304233,-500.0,0.00037534,3]
[310258032,1704424304244,-762.87,0.00037534,3]
[310258033,1704424304254,-500.0,0.00037534,3]
[310258034,1704424304264,-5862.64,0.00037534,3]
[310258035,1704424304274,-786.79,0.00037534,3]
[310258036,1704424304283,-500.0,0.00037534,3]
[310258037,1704424304293,-934.12,0.00037534,3]
[310258038,1704424304301,-1785.52,0.00037534,3]
[310258039,1704424304310,-500.0,0.00037534,3]
[310258040,1704424304319,-912.64,0.00037534,3]
[310258041,1704424304329,-808.85,0.00037534,3]
[310258042,1704424304338,-882.36,0.00037534,3]
[310258043,1704424304347,-1259.24,0.00037534,3]
[310258044,1704424304357,-13869.62,0.00037534,3]
[310258045,1704424304366,-500.0,0.00037534,3]
[310258046,1704424304376,-500.0,0.00037534,3]
[310258047,1704424304386,-3101.88,0.00037534,3]
[310258048,1704424304396,-1091.42,0.00037534,3]
[310258049,1704424304405,-785.92,0.00037534,3]
[310258050,1704424304414,-586.04,0.00037534,3]
[310258051,1704424304424,-500.0,0.00037534,3]
[310258052,1704424304433,-500.0,0.00037534,3]
[310258053,1704424304444,-1268.16,0.00037534,3]
[310258054,1704424304454,-1189.46,0.00037534,3]
[310258055,1704424304465,-606.27,0.00037534,3]
[310258056,1704424304474,-593.38,0.00037534,3]
[310258057,1704424304484,-1481.99,0.00037534,3]
[310258058,1704424304494,-500.0,0.00037534,3]
[310258059,1704424304503,-500.0,0.00037534,3]
[310258060,1704424304514,-1085.76,0.00037534,3]
[310258061,1704424304523,-1106.51,0.00037534,3]
[310258062,1704424304532,-500.0,0.00037534,3]
[310258063,1704424304542,-1351.81,0.00037534,3]
[310258064,1704424304552,-500.0,0.00037534,3]
[310258065,1704424304563,-181.43598948,0.00037534,3]
[310258066,1704424304573,-500.0,0.00037534,3]
[310258067,1704424304583,-545.65,0.00037534,3]
[310258068,1704424304593,-765.09,0.00037534,3]
[310258069,1704424304603,-537.24,0.00037534,3]
[310258070,1704424304612,-1151.66,0.00037534,3]
[310258071,1704424304623,-500.0,0.00037534,3]
[310258072,1704424304632,-779.5,0.00037534,3]
[310258073,1704424304641,-1306.66,0.00037534,3]
[310258074,1704424304650,-572.88,0.00037534,3]
[310258075,1704424304660,-500.0,0.00037534,3]
[310258076,1704424304670,-500.0,0.00037534,3]
[310258077,1704424304679,-500.0,0.00037534,3]
[310258078,1704424304689,-8188.31,0.00037534,3]
[310258079,1704424304698,-500.0,0.00037534,3]
[310258080,1704424304707,-500.0,0.00037534,3]
[310258081,1704424304717,-165.41240883,0.00037534,3]
[310258082,1704424304726,-1063.95,0.00037534,3]
[310258083,1704424304735,-798.53,0.00037534,3]
[310258084,1704424304744,-509.46794019,0.00037534,3]
[310258085,1704424304754,-528.36,0.00037534,3]
[310258086,1704424304763,-500.0,0.00037534,3]
[310258087,1704424304773,-920.16,0.00037534,3]
[310258088,1704424304782,-500.0,0.00037534,3]
[310258089,1704424304792,-500.0,0.00037534,3]
[310258090,1704424304801,-663.44,0.00037534,3]
[310258091,1704424304810,-1622.28,0.00037534,3]
[310258092,1704424304820,-500.0,0.00037534,3]
[310258093,1704424304829,-711.28,0.00037534,3]
[310258094,1704424304838,-500.0,0.00037534,3]
[310258095,1704424304847,-502.3,0.00037534,3]
[310258096,1704424304856,-2080.27,0.00037534,3]
[310258097,1704424304866,-835.35,0.00037534,3]
[310258098,1704424304875,-500.0,0.00037534,3]
[310258099,1704424304884,-500.0,0.00037534,3]
[310258100,1704424304893,-500.0,0.00037534,3]
[310258101,1704424304902,-2415.78,0.00037534,3]
[310258102,1704424304912,-558.41,0.00037534,3]
[310258103,1704424304921,-343.99406973,0.00037534,3]
[310258104,1704424304932,-500.0,0.00037534,3]
[310258105,1704424304943,-500.0,0.00037534,3]
[310258106,1704424304952,-500.0,0.00037534,3]
[310258107,1704424304960,-500.0,0.00037534,3]
[310258108,1704424304969,-542.19,0.00037534,3]
[310258109,1704424304979,-164.10586097,0.00037534,3]
[310258110,1704424304988,-500.0,0.00037534,3]
[310258111,1704424304998,-500.0,0.00037534,3]
[310258112,1704424305007,-500.0,0.00037534,3]
[310258113,1704424305018,-457.28775511,0.00037534,3]
[310258114,1704424305027,-1511.27,0.00037534,3]
[310258115,1704424305036,-500.0,0.00037534,3]
[310258116,1704424305045,-4392.23,0.00037534,3]
[310258117,1704424305054,-1318.19,0.00037534,3]
[310258118,1704424305063,-500.0,0.00037534,3]
[310258119,1704424305073,-12548.29243513,0.00037534,15]
[310258120,1704424305082,-165.49169783,0.00037551,14]
[310258121,1704424305091,-201.0,0.00037569,14]
[310258122,1704424305100,-1405.39,0.000376,7]
[310258123,1704424305111,-157.40105,0.00037698,2]
[310258124,1704424305122,-191.33518818,0.00037705,2]
[310258125,1704424305132,-327.16038717,0.00037708,10]
[310258126,1704424305142,-327.16038717,0.00037708,10]
[310258127,1704424305151,-327.16038717,0.00037708,10]
[310258128,1704424305161,-327.16038717,0.00037708,10]
[310258129,1704424305170,-327.16038717,0.00037708,10]
[310258130,1704424305179,-327.16038717,0.00037708,10]
[310258131,1704424305189,-327.16038717,0.00037708,10]
[310258132,1704424305198,-327.16038717,0.00037708,10]
[310258133,1704424305207,-327.16038717,0.00037708,10]
[310258134,1704424305217,-327.16038717,0.00037708,10]
[310258135,1704424305226,-327.16038717,0.00037708,10]
[310258136,1704424305236,-327.16038717,0.00037708,10]
[310258137,1704424305246,-327.16038717,0.00037708,10]
[310258138,1704424305256,-327.16038717,0.00037708,10]
[310258139,1704424305265,-327.16038717,0.00037708,10]
[310258140,1704424305275,-327.16038717,0.00037708,10]
[310258141,1704424305285,-327.16038717,0.00037708,10]
[310258142,1704424305296,-327.16038717,0.00037708,10]
[310258143,1704424305305,-327.16038717,0.00037708,10]
[310258144,1704424305315,-327.16,0.00037708,10]
[310258145,1704424305325,-1308.6415487,0.00037708,10]
[310258146,1704424305334,-1308.6415487,0.00037708,10]
[310258147,1704424305343,-1308.6415487,0.00037708,10]
[310258148,1704424305354,-1308.6415487,0.00037708,10]
[310258149,1704424305363,-1308.6415487,0.00037708,10]
[310258150,1704424305375,-1308.6415487,0.00037708,10]
[310258151,1704424305385,-1308.6415487,0.00037708,10]
[310258152,1704424305394,-1308.6415487,0.00037708,10]
[310258153,1704424305404,-1308.6415487,0.00037708,10]
[310258154,1704424305414,-1308.6415487,0.00037708,10]
[310258155,1704424305424,-1308.6415487,0.00037708,10]
[310258156,1704424305434,-1308.6415487,0.00037708,10]
[310258157,1704424305443,-1308.6415487,0.00037708,10]
[310258158,1704424305452,-1308.6415487,0.00037708,10]
[310258159,1704424305461,-1308.6415487,0.00037708,10]
[310258160,1704424305470,-1308.6415487,0.00037708,10]
[310258161,1704424305481,-1308.6415487,0.00037708,10]
[310258162,1704424305490,-161.32975459,0.00037708,10]
[310258163,1704424305500,-161.32975459,0.00037708,10]
[310258164,1704424305510,-161.32975459,0.00037708,10]
[310258165,1704424305577,-161.32975459,0.00037708,10]
[310258166,1704424305588,-161.32975459,0.00037708,10]
[310258167,1704424305597,-161.32975459,0.00037708,10]
[310258168,1704424305607,-161.32975459,0.00037708,10]
[310258169,1704424305618,-161.32975459,0.00037708,10]
[310258170,1704424305629,-161.32975459,0.00037708,10]
[310258171,1704424305638,-161.32975459,0.00037708,10]
[310258172,1704424305650,-161.32975459,0.00037708,10]
[310258173,1704424305661,-161.32,0.00037708,10]
[310258174,1704424305670,-387.19141102,0.00037708,10]
[310258175,1704424305679,-387.19141102,0.00037708,10]
[310258176,1704424305689,-387.19141102,0.00037708,10]
[310258177,1704424305698,-387.19141102,0.00037708,10]
[310258178,1704424305708,-387.19141102,0.00037708,10]
[310258179,1704424305718,-387.19141102,0.00037708,10]
[310258180,1704424305728,-387.19141102,0.00037708,10]
[310258181,1704424305738,-387.19141102,0.00037708,10]
[310258182,1704424305748,-387.19141102,0.00037708,10]
[310258183,1704424305757,-387.19141102,0.00037708,10]
[310258184,1704424305766,-387.19141102,0.00037708,10]
[310258185,1704424305775,-387.19141102,0.00037708,10]
[310258186,1704424305784,-387.19141102,0.00037708,10]
[310258187,1704424305794,-387.19141102,0.00037708,10]
[310258188,1704424305803,-387.19141102,0.00037708,10]
[310258189,1704424305812,-387.19141102,0.00037708,10]
[310258190,1704424305821,-387.19141102,0.00037708,10]